[Event "Late-Titled-Tuesday-Blitz-September-05-2023"]
[Site "Chess.com"]
[Date "2023.09.05"]
[Round "2"]
[White "infinitegiantkiller"]
[Black "The_Princess_Moon"]
[Result "1-0"]
[WhiteElo "2493"]
[BlackElo "2286"]
[TimeControl "180+1"]
[EndTime "14:17:27 PDT"]
[Termination "infinitegiantkiller won by resignation"]

1. Nf3 {[%clk 0:03:00.9]} 1... c5 {[%clk 0:03:00.9]} 2. g3 {[%clk 0:03:01.8]}
2... Nc6 {[%clk 0:03:00.6]} 3. Bg2 {[%clk 0:03:02.7]} 3... d6 {[%clk 0:03:01]}
4. O-O {[%clk 0:03:01.8]} 4... Nf6 {[%clk 0:03:01.9]} 5. b3 {[%clk 0:03:02.4]}
5... g6 {[%clk 0:03:01.6]} 6. Bb2 {[%clk 0:03:03.3]} 6... Bg7 {[%clk 0:03:01.9]}
7. d4 {[%clk 0:03:03.5]} 7... cxd4 {[%clk 0:03:02.1]} 8. Nxd4 {[%clk 0:03:03.6]}
8... Nxd4 {[%clk 0:03:03]} 9. Bc3 {[%clk 0:03:03.7]} 9... O-O {[%clk 0:03:03.9]}
10. Bxd4 {[%clk 0:03:03.4]} 10... a6 {[%clk 0:03:03.6]} 11. c4 {[%clk
0:03:03.1]} 11... Qa5 {[%clk 0:03:03.4]} 12. Nd2 {[%clk 0:02:58.5]} 12... Rb8
{[%clk 0:03:00]} 13. Nf3 {[%clk 0:02:53.4]} 13... b5 {[%clk 0:02:57.9]} 14. cxb5
{[%clk 0:02:52.6]} 14... axb5 {[%clk 0:02:57.2]} 15. Qd2 {[%clk 0:02:44.2]}
15... b4 {[%clk 0:02:51.5]} 16. Rfc1 {[%clk 0:02:24.2]} 16... Be6 {[%clk
0:02:42.3]} 17. Ng5 {[%clk 0:02:11.2]} 17... Bd5 {[%clk 0:02:34.7]} 18. Bxf6
{[%clk 0:01:35.2]} 18... Bxf6 {[%clk 0:02:09.1]} 19. Bxd5 {[%clk 0:01:34.7]}
19... Bxg5 {[%clk 0:01:16.5]} 20. Qxg5 {[%clk 0:01:31.2]} 20... Rb5 {[%clk
0:01:15.9]} 21. e4 {[%clk 0:01:20.4]} 21... e6 {[%clk 0:01:15.3]} 22. Rd1 {[%clk
0:01:04.2]} 22... exd5 {[%clk 0:01:11.9]} 23. Rxd5 {[%clk 0:01:04]} 23... Rxd5
{[%clk 0:01:11.1]} 24. Qxd5 {[%clk 0:01:04.5]} 24... Qxd5 {[%clk 0:01:06.8]} 25.
exd5 {[%clk 0:01:05.4]} 25... Ra8 {[%clk 0:01:03.8]} 26. Kf1 {[%clk 0:01:00.6]}
26... Kg7 {[%clk 0:01:03.9]} 27. Ke2 {[%clk 0:01:01]} 27... Kf6 {[%clk
0:01:04.2]} 28. f4 {[%clk 0:01:01.4]} 28... Kf5 {[%clk 0:00:56.5]} 29. Kf3
{[%clk 0:01:00.7]} 29... h5 {[%clk 0:00:56.2]} 30. h3 {[%clk 0:01:01.2]} 30...
Rc8 {[%clk 0:00:54]} 31. g4+ {[%clk 0:01:01.3]} 31... hxg4+ {[%clk 0:00:53.5]}
32. hxg4+ {[%clk 0:01:02.2]} 32... Kf6 {[%clk 0:00:53.8]} 33. a4 {[%clk
0:01:02.7]} 33... Rc3+ {[%clk 0:00:53.1]} 34. Ke4 {[%clk 0:01:03]} 34... Rxb3
{[%clk 0:00:53.3]} 35. Kd4 {[%clk 0:00:58.7]} 35... Rc3 {[%clk 0:00:28.4]} 36.
a5 {[%clk 0:00:55.6]} 36... Rc7 {[%clk 0:00:28.9]} 37. a6 {[%clk 0:00:55.4]}
37... Ra7 {[%clk 0:00:29.1]} 38. Kc4 {[%clk 0:00:56]} 38... g5 {[%clk 0:00:29]}
39. fxg5+ {[%clk 0:00:55.6]} 39... Kxg5 {[%clk 0:00:29.2]} 40. Kxb4 {[%clk
0:00:56.1]} 40... Kxg4 {[%clk 0:00:29.1]} 41. Kb5 {[%clk 0:00:56.6]} 41... f5
{[%clk 0:00:29.2]} 42. Kb6 {[%clk 0:00:55.5]} 42... Ra8 {[%clk 0:00:29.4]} 43.
a7 {[%clk 0:00:55.3]} 43... f4 {[%clk 0:00:28.5]} 44. Kb7 {[%clk 0:00:55.9]}
44... Rf8 {[%clk 0:00:21.1]} 45. a8=Q {[%clk 0:00:55.8]} 45... Rxa8 {[%clk
0:00:21.1]} 46. Kxa8 {[%clk 0:00:56.7]} 46... f3 {[%clk 0:00:20.4]} 47. Kb7
{[%clk 0:00:57.2]} 47... Kg3 {[%clk 0:00:18.4]} 48. Kc6 {[%clk 0:00:57.6]} 48...
f2 {[%clk 0:00:18.7]} 49. Kxd6 {[%clk 0:00:58.2]} 49... Kg2 {[%clk 0:00:19]} 50.
Ke6 {[%clk 0:00:57.7]} 50... f1=Q {[%clk 0:00:19.9]} 51. Rxf1 {[%clk 0:00:57.2]}
51... Kxf1 {[%clk 0:00:20.8]} 52. d6 {[%clk 0:00:57.4]} 1-0

[Event "Late-Titled-Tuesday-Blitz-September-05-2023"]
[Site "Chess.com"]
[Date "2023.09.05"]
[Round "2"]
[White "Chessbard1972"]
[Black "sofaceindisguise"]
[Result "0-1"]
[WhiteElo "2506"]
[BlackElo "2734"]
[TimeControl "180+1"]
[EndTime "14:17:29 PDT"]
[Termination "sofaceindisguise won by resignation"]

1. d4 {[%clk 0:03:00.9]} 1... Nf6 {[%clk 0:02:55.2]} 2. c4 {[%clk 0:03:00.3]}
2... e6 {[%clk 0:02:55]} 3. Nf3 {[%clk 0:03:00]} 3... d5 {[%clk 0:02:54.5]} 4.
Nc3 {[%clk 0:02:59.3]} 4... dxc4 {[%clk 0:02:51.6]} 5. e3 {[%clk 0:02:58.7]}
5... c5 {[%clk 0:02:49.8]} 6. Bxc4 {[%clk 0:02:57.9]} 6... a6 {[%clk 0:02:48.1]}
7. O-O {[%clk 0:02:56.6]} 7... cxd4 {[%clk 0:02:45.1]} 8. Qxd4 {[%clk
0:02:51.4]} 8... Qxd4 {[%clk 0:02:33.5]} 9. Nxd4 {[%clk 0:02:50.9]} 9... Bd7
{[%clk 0:02:32.1]} 10. e4 {[%clk 0:02:39.8]} 10... Nc6 {[%clk 0:02:30.7]} 11.
Nde2 {[%clk 0:02:31.9]} 11... Rc8 {[%clk 0:02:28.4]} 12. Bb3 {[%clk 0:02:22.4]}
12... Bc5 {[%clk 0:02:27.8]} 13. Bg5 {[%clk 0:02:15.5]} 13... h6 {[%clk
0:02:26.4]} 14. Bh4 {[%clk 0:02:14.4]} 14... g5 {[%clk 0:02:24.7]} 15. Bg3
{[%clk 0:02:14.4]} 15... Ke7 {[%clk 0:02:23.5]} 16. Rad1 {[%clk 0:02:11.2]}
16... Nh5 {[%clk 0:02:08.1]} 17. Na4 {[%clk 0:02:09.1]} 17... Nxg3 {[%clk
0:02:07.3]} 18. hxg3 {[%clk 0:02:01.4]} 18... Ba7 {[%clk 0:02:05.5]} 19. Rd2
{[%clk 0:01:55.4]} 19... Rhd8 {[%clk 0:02:02.3]} 20. Rfd1 {[%clk 0:01:51.1]}
20... Na5 {[%clk 0:02:00.5]} 21. Nac3 {[%clk 0:01:44.4]} 21... Nxb3 {[%clk
0:01:59.2]} 22. axb3 {[%clk 0:01:44.3]} 22... Bc6 {[%clk 0:01:59.3]} 23. Rxd8
{[%clk 0:01:42.6]} 23... Rxd8 {[%clk 0:01:58.3]} 24. Rxd8 {[%clk 0:01:43.3]}
24... Kxd8 {[%clk 0:01:59.2]} 25. Kf1 {[%clk 0:01:42.3]} 25... Ke7 {[%clk
0:01:58.5]} 26. f3 {[%clk 0:01:42.1]} 26... a5 {[%clk 0:01:49.6]} 27. Ke1 {[%clk
0:01:40.4]} 27... b5 {[%clk 0:01:48.9]} 28. Kd2 {[%clk 0:01:39.4]} 28... b4
{[%clk 0:01:45.7]} 29. Nd1 {[%clk 0:01:39.3]} 29... h5 {[%clk 0:01:37.6]} 30.
Ne3 {[%clk 0:01:35.2]} 30... Bb5 {[%clk 0:01:31.4]} 31. Nc4 {[%clk 0:01:33.9]}
31... Bxc4 {[%clk 0:01:26.3]} 32. bxc4 {[%clk 0:01:33.6]} 32... a4 {[%clk
0:01:27.2]} 33. Nc1 {[%clk 0:01:21.1]} 33... Bd4 {[%clk 0:01:23]} 34. Kc2 {[%clk
0:01:17.6]} 34... b3+ {[%clk 0:01:21.3]} 35. Kb1 {[%clk 0:01:17]} 35... Kd6
{[%clk 0:01:19.9]} 36. Ne2 {[%clk 0:01:15.6]} 36... Kc5 {[%clk 0:01:18.6]} 37.
f4 {[%clk 0:01:03.2]} 37... g4 {[%clk 0:01:12.6]} 38. f5 {[%clk 0:00:59]} 38...
e5 {[%clk 0:01:04.6]} 39. Kc1 {[%clk 0:00:35.4]} 39... Kxc4 {[%clk 0:01:03.6]}
40. Kb1 {[%clk 0:00:31.4]} 40... Kd3 {[%clk 0:00:58.8]} 41. Nxd4 {[%clk
0:00:23.7]} 41... Kxd4 {[%clk 0:00:51.5]} 42. Kc1 {[%clk 0:00:22.2]} 42... Kxe4
{[%clk 0:00:51.9]} 43. f6 {[%clk 0:00:21.7]} 43... Kd3 {[%clk 0:00:51.5]} 44.
Kd1 {[%clk 0:00:20.8]} 44... e4 {[%clk 0:00:51.8]} 0-1

[Event "Late-Titled-Tuesday-Blitz-September-05-2023"]
[Site "Chess.com"]
[Date "2023.09.05"]
[Round "2"]
[White "IamSchrodingersCat"]
[Black "FaustinoOro"]
[Result "1-0"]
[WhiteElo "2563"]
[BlackElo "2864"]
[TimeControl "180+1"]
[EndTime "14:17:31 PDT"]
[Termination "IamSchrodingersCat won by resignation"]

1. e4 {[%clk 0:03:00.9]} 1... c5 {[%clk 0:02:59.4]} 2. Nf3 {[%clk 0:03:00.7]}
2... d6 {[%clk 0:02:59.6]} 3. d4 {[%clk 0:03:00.5]} 3... cxd4 {[%clk 0:02:59.6]}
4. Nxd4 {[%clk 0:03:01.4]} 4... Nf6 {[%clk 0:02:59.8]} 5. Nc3 {[%clk 0:03:01.6]}
5... a6 {[%clk 0:02:59.9]} 6. Be2 {[%clk 0:03:01.9]} 6... e5 {[%clk 0:02:59.4]}
7. Nb3 {[%clk 0:03:02.2]} 7... Be7 {[%clk 0:02:59.6]} 8. g4 {[%clk 0:03:01.8]}
8... h6 {[%clk 0:02:49.4]} 9. Be3 {[%clk 0:03:01.1]} 9... Be6 {[%clk 0:02:49.5]}
10. Bf3 {[%clk 0:03:00.7]} 10... Nbd7 {[%clk 0:02:45.6]} 11. Qe2 {[%clk
0:03:00.1]} 11... b5 {[%clk 0:02:37.4]} 12. O-O-O {[%clk 0:02:55.4]} 12... Nb6
{[%clk 0:02:28.2]} 13. Na5 {[%clk 0:02:06.7]} 13... Qc7 {[%clk 0:02:16.8]} 14.
h4 {[%clk 0:02:04.8]} 14... b4 {[%clk 0:02:14.4]} 15. Nd5 {[%clk 0:02:01.7]}
15... Nbxd5 {[%clk 0:01:39.1]} 16. exd5 {[%clk 0:02:00.9]} 16... Bd7 {[%clk
0:01:32.4]} 17. Nc6 {[%clk 0:01:35.5]} 17... Bxc6 {[%clk 0:01:04.3]} 18. dxc6
{[%clk 0:01:36.4]} 18... e4 {[%clk 0:01:03.6]} 19. Bg2 {[%clk 0:01:22.7]} 19...
Qxc6 {[%clk 0:01:00.1]} 20. g5 {[%clk 0:01:22.9]} 20... Nd7 {[%clk 0:00:54.2]}
21. Bd4 {[%clk 0:01:15.7]} 21... d5 {[%clk 0:00:47.6]} 22. Bxg7 {[%clk 0:01:13]}
22... Rg8 {[%clk 0:00:47.8]} 23. gxh6 {[%clk 0:01:04.1]} 23... O-O-O {[%clk
0:00:47]} 24. Bh3 {[%clk 0:00:49.8]} 24... Kb7 {[%clk 0:00:39.5]} 25. Bf5 {[%clk
0:00:38.7]} 25... Bf6 {[%clk 0:00:35.7]} 26. Rxd5 {[%clk 0:00:35.1]} 26... Bxg7
{[%clk 0:00:23.7]} 27. hxg7 {[%clk 0:00:35.2]} 27... Nf6 {[%clk 0:00:15.6]} 28.
Rxd8 {[%clk 0:00:31.6]} 28... Rxd8 {[%clk 0:00:16.5]} 29. Rg1 {[%clk 0:00:26.9]}
29... e3 {[%clk 0:00:16.7]} 30. Qxe3 {[%clk 0:00:21.3]} 30... Qd5 {[%clk
0:00:16.1]} 31. Bd3 {[%clk 0:00:16.1]} 31... Ng8 {[%clk 0:00:12.4]} 32. Be4
{[%clk 0:00:15.5]} 1-0

[Event "Late-Titled-Tuesday-Blitz-September-05-2023"]
[Site "Chess.com"]
[Date "2023.09.05"]
[Round "2"]
[White "jcibarra"]
[Black "adiosabu"]
[Result "1-0"]
[WhiteElo "2917"]
[BlackElo "2567"]
[TimeControl "180+1"]
[EndTime "14:17:32 PDT"]
[Termination "jcibarra won by resignation"]

1. e4 {[%clk 0:03:00.9]} 1... c5 {[%clk 0:02:56.6]} 2. Nf3 {[%clk 0:03:00.8]}
2... Nc6 {[%clk 0:02:56.5]} 3. Nc3 {[%clk 0:03:00]} 3... d6 {[%clk 0:02:53.5]}
4. d4 {[%clk 0:03:00.1]} 4... cxd4 {[%clk 0:02:53.1]} 5. Nxd4 {[%clk 0:03:01]}
5... Nf6 {[%clk 0:02:52.9]} 6. Nd5 {[%clk 0:03:01.1]} 6... e6 {[%clk 0:02:20.6]}
7. Nxf6+ {[%clk 0:03:01.1]} 7... Qxf6 {[%clk 0:02:17.1]} 8. Nb5 {[%clk
0:03:00.8]} 8... Qd8 {[%clk 0:02:16.3]} 9. c4 {[%clk 0:03:01.4]} 9... Be7 {[%clk
0:02:13.9]} 10. Bf4 {[%clk 0:03:00.2]} 10... e5 {[%clk 0:02:03.3]} 11. Be3
{[%clk 0:03:00.3]} 11... O-O {[%clk 0:02:02.2]} 12. Be2 {[%clk 0:02:55]} 12...
a6 {[%clk 0:01:52.3]} 13. Nc3 {[%clk 0:02:55]} 13... Bg5 {[%clk 0:01:52.3]} 14.
Qd2 {[%clk 0:02:27.9]} 14... Bxe3 {[%clk 0:01:47.1]} 15. Qxe3 {[%clk 0:02:28.8]}
15... Nd4 {[%clk 0:01:46.9]} 16. Bd3 {[%clk 0:02:28.7]} 16... b5 {[%clk
0:01:39.8]} 17. Rc1 {[%clk 0:02:09.8]} 17... Be6 {[%clk 0:01:32.5]} 18. cxb5
{[%clk 0:02:01.9]} 18... axb5 {[%clk 0:01:33.4]} 19. a3 {[%clk 0:02:00.8]} 19...
Qb8 {[%clk 0:01:10.4]} 20. Ne2 {[%clk 0:01:46.4]} 20... Nxe2 {[%clk 0:01:05.9]}
21. Bxe2 {[%clk 0:01:47.3]} 21... b4 {[%clk 0:01:06.2]} 22. O-O {[%clk
0:01:47.7]} 22... bxa3 {[%clk 0:01:06]} 23. bxa3 {[%clk 0:01:48.6]} 23... Qb2
{[%clk 0:01:04.6]} 24. Rc3 {[%clk 0:01:38]} 24... Rfc8 {[%clk 0:01:02.5]} 25.
Rfc1 {[%clk 0:01:32.9]} 25... Rxc3 {[%clk 0:01:01.8]} 26. Rxc3 {[%clk
0:01:30.3]} 26... g6 {[%clk 0:00:55.3]} 27. h4 {[%clk 0:01:28.2]} 27... h5
{[%clk 0:00:53.4]} 28. Bxh5 {[%clk 0:00:39.5]} 28... gxh5 {[%clk 0:00:45.9]} 29.
Qg5+ {[%clk 0:00:40.2]} 29... Kf8 {[%clk 0:00:46]} 30. Qh6+ {[%clk 0:00:41]}
30... Kg8 {[%clk 0:00:41.4]} 31. Rg3+ {[%clk 0:00:39.1]} 31... Bg4 {[%clk
0:00:40.4]} 32. Qxh5 {[%clk 0:00:35.6]} 32... Rxa3 {[%clk 0:00:20.4]} 33. Rxg4+
{[%clk 0:00:28.1]} 33... Kf8 {[%clk 0:00:20.5]} 34. Qg5 {[%clk 0:00:23.2]} 34...
Ra1+ {[%clk 0:00:17.7]} 35. Kh2 {[%clk 0:00:23.3]} 35... Ke8 {[%clk 0:00:17.8]}
36. Qf6 {[%clk 0:00:22.7]} 36... Qb3 {[%clk 0:00:14.4]} 37. Qxd6 {[%clk
0:00:20.6]} 1-0

[Event "Late-Titled-Tuesday-Blitz-September-05-2023"]
[Site "Chess.com"]
[Date "2023.09.05"]
[Round "2"]
[White "emeli_chess"]
[Black "PepeCuenca"]
[Result "0-1"]
[WhiteElo "2362"]
[BlackElo "2676"]
[TimeControl "180+1"]
[EndTime "14:17:35 PDT"]
[Termination "PepeCuenca won by resignation"]

1. d4 {[%clk 0:03:00.9]} 1... d6 {[%clk 0:02:59.7]} 2. e4 {[%clk 0:03:00.6]}
2... Nf6 {[%clk 0:02:59.8]} 3. Bd3 {[%clk 0:03:00.5]} 3... e5 {[%clk 0:03:00.1]}
4. d5 {[%clk 0:03:00.6]} 4... Be7 {[%clk 0:02:59.9]} 5. c4 {[%clk 0:02:58.9]}
5... O-O {[%clk 0:02:59.4]} 6. Nc3 {[%clk 0:02:58.7]} 6... c6 {[%clk 0:02:59.2]}
7. f3 {[%clk 0:02:54.4]} 7... cxd5 {[%clk 0:02:48.2]} 8. cxd5 {[%clk 0:02:54]}
8... Nfd7 {[%clk 0:02:46.9]} 9. Be3 {[%clk 0:02:49.4]} 9... Bg5 {[%clk
0:02:44.6]} 10. Qd2 {[%clk 0:02:49.4]} 10... Bxe3 {[%clk 0:02:44.8]} 11. Qxe3
{[%clk 0:02:49.9]} 11... Nc5 {[%clk 0:02:45.4]} 12. Bc2 {[%clk 0:02:46.9]} 12...
a5 {[%clk 0:02:45.6]} 13. Nge2 {[%clk 0:02:44.9]} 13... Bd7 {[%clk 0:02:40.9]}
14. O-O {[%clk 0:02:42.6]} 14... b5 {[%clk 0:02:40.2]} 15. a3 {[%clk 0:02:41.8]}
15... Nba6 {[%clk 0:02:35.4]} 16. Nc1 {[%clk 0:02:21.3]} 16... b4 {[%clk
0:02:31.6]} 17. axb4 {[%clk 0:02:21.1]} 17... Nxb4 {[%clk 0:02:30.5]} 18. Ba4
{[%clk 0:02:07.8]} 18... f5 {[%clk 0:02:13.3]} 19. Bxd7 {[%clk 0:02:06.3]} 19...
Qxd7 {[%clk 0:02:14.2]} 20. Qd2 {[%clk 0:01:45.4]} 20... fxe4 {[%clk 0:01:58.9]}
21. Nxe4 {[%clk 0:01:45.1]} 21... Nxe4 {[%clk 0:01:58.8]} 22. fxe4 {[%clk
0:01:45.2]} 22... Rxf1+ {[%clk 0:01:59.1]} 23. Kxf1 {[%clk 0:01:45.6]} 23...
Rf8+ {[%clk 0:01:53.8]} 24. Kg1 {[%clk 0:01:45.7]} 24... Qb5 {[%clk 0:01:53.7]}
25. Ne2 {[%clk 0:01:40.5]} 25... Qb6+ {[%clk 0:01:31.3]} 26. Kh1 {[%clk
0:01:40]} 26... Rf2 {[%clk 0:01:23.5]} 27. Rc1 {[%clk 0:01:20.7]} 27... h6
{[%clk 0:01:23.7]} 28. h3 {[%clk 0:01:12.9]} 28... Qa6 {[%clk 0:01:17.9]} 29.
Re1 {[%clk 0:00:56.7]} 29... Nd3 {[%clk 0:01:16.1]} 30. Qe3 {[%clk 0:00:49.4]}
30... Rxg2 {[%clk 0:00:56.3]} 31. Rf1 {[%clk 0:00:42.2]} 31... Nf4 {[%clk
0:00:42]} 32. Rxf4 {[%clk 0:00:10.1]} 32... Rxe2 {[%clk 0:00:40.1]} 33. Rf8+
{[%clk 0:00:04.2]} 33... Kxf8 {[%clk 0:00:40.2]} 34. Qf3+ {[%clk 0:00:04.7]}
34... Kg8 {[%clk 0:00:40.7]} 35. Qf5 {[%clk 0:00:04.1]} 35... Re1+ {[%clk
0:00:40.3]} 36. Kg2 {[%clk 0:00:03.6]} 36... Qe2+ {[%clk 0:00:40.6]} 37. Kg3
{[%clk 0:00:04]} 37... Rg1+ {[%clk 0:00:40.7]} 38. Kh4 {[%clk 0:00:04.5]} 38...
Qe1+ {[%clk 0:00:39.5]} 39. Kh5 {[%clk 0:00:04.5]} 39... Rg5+ {[%clk 0:00:39.4]}
0-1

[Event "Late-Titled-Tuesday-Blitz-September-05-2023"]
[Site "Chess.com"]
[Date "2023.09.05"]
[Round "2"]
[White "YEIKO2017"]
[Black "IlanSchnaider"]
[Result "1-0"]
[WhiteElo "2433"]
[BlackElo "2752"]
[TimeControl "180+1"]
[EndTime "14:17:37 PDT"]
[Termination "YEIKO2017 won by checkmate"]

1. e4 {[%clk 0:03:00.9]} 1... c5 {[%clk 0:02:53.7]} 2. Nf3 {[%clk 0:03:00.7]}
2... d6 {[%clk 0:02:53.5]} 3. d4 {[%clk 0:03:00.5]} 3... cxd4 {[%clk 0:02:53.8]}
4. Nxd4 {[%clk 0:03:01.4]} 4... Nf6 {[%clk 0:02:54]} 5. Nc3 {[%clk 0:03:01.3]}
5... a6 {[%clk 0:02:54]} 6. Bg5 {[%clk 0:03:01.8]} 6... e6 {[%clk 0:02:52.7]} 7.
f4 {[%clk 0:03:01.8]} 7... Be7 {[%clk 0:02:53]} 8. Qf3 {[%clk 0:02:59.4]} 8...
Qc7 {[%clk 0:02:51.5]} 9. O-O-O {[%clk 0:02:59.7]} 9... Nbd7 {[%clk 0:02:51.9]}
10. g4 {[%clk 0:03:00]} 10... h6 {[%clk 0:02:51.4]} 11. Bxf6 {[%clk 0:02:59.5]}
11... Bxf6 {[%clk 0:02:51.8]} 12. h4 {[%clk 0:02:59.6]} 12... Nb6 {[%clk
0:02:52.5]} 13. g5 {[%clk 0:02:57.4]} 13... Bxd4 {[%clk 0:02:52.8]} 14. Rxd4
{[%clk 0:02:57.9]} 14... Qc5 {[%clk 0:02:53.3]} 15. Rd2 {[%clk 0:02:51.2]} 15...
Bd7 {[%clk 0:02:50.8]} 16. Be2 {[%clk 0:02:38.7]} 16... Na4 {[%clk 0:02:46]} 17.
Nxa4 {[%clk 0:02:36.4]} 17... Bxa4 {[%clk 0:02:46.9]} 18. Rhd1 {[%clk
0:02:32.5]} 18... Rc8 {[%clk 0:02:33.2]} 19. b3 {[%clk 0:02:29.4]} 19... Bd7
{[%clk 0:02:09.6]} 20. c4 {[%clk 0:02:18.1]} 20... Rc6 {[%clk 0:02:02.5]} 21.
Qc3 {[%clk 0:02:15.4]} 21... O-O {[%clk 0:01:49.8]} 22. gxh6 {[%clk 0:02:13.4]}
22... f6 {[%clk 0:00:27]} 23. hxg7 {[%clk 0:02:01.1]} 23... Kxg7 {[%clk
0:00:18.7]} 24. Qg3+ {[%clk 0:01:34.5]} 24... Kf7 {[%clk 0:00:18.7]} 25. e5
{[%clk 0:01:27.8]} 25... Ke7 {[%clk 0:00:11.8]} 26. Qg7+ {[%clk 0:01:24.4]}
26... Rf7 {[%clk 0:00:02]} 27. exf6+ {[%clk 0:01:24]} 27... Kd8 {[%clk
0:00:01.5]} 28. Qxf7 {[%clk 0:01:23.2]} 28... Qa3+ {[%clk 0:00:01.7]} 29. Kb1
{[%clk 0:01:22.1]} 29... e5 {[%clk 0:00:01.5]} 30. Rxd6 {[%clk 0:01:09.5]} 30...
Rxd6 {[%clk 0:00:01.7]} 31. Qe7+ {[%clk 0:01:09.8]} 31... Kc7 {[%clk 0:00:01.6]}
32. Qxd6+ {[%clk 0:01:09.9]} 32... Qxd6 {[%clk 0:00:01.9]} 33. Rxd6 {[%clk
0:01:10.4]} 33... Kxd6 {[%clk 0:00:02.8]} 34. fxe5+ {[%clk 0:01:09.4]} 34...
Kxe5 {[%clk 0:00:01.7]} 35. f7 {[%clk 0:01:09.1]} 35... Bf5+ {[%clk 0:00:02]}
36. Kb2 {[%clk 0:01:08.3]} 36... Ke6 {[%clk 0:00:02]} 37. f8=Q {[%clk
0:01:08.4]} 37... Be4 {[%clk 0:00:02]} 38. Bg4+ {[%clk 0:01:07.1]} 38... Ke5
{[%clk 0:00:01.8]} 39. Qe7+ {[%clk 0:01:06.3]} 39... Kf4 {[%clk 0:00:02]} 40.
Bc8 {[%clk 0:01:05.8]} 40... b5 {[%clk 0:00:01.7]} 41. cxb5 {[%clk 0:01:04.9]}
41... axb5 {[%clk 0:00:02.6]} 42. h5 {[%clk 0:01:05]} 42... b4 {[%clk
0:00:02.1]} 43. h6 {[%clk 0:01:05.1]} 43... Ke3 {[%clk 0:00:02.1]} 44. Bf5
{[%clk 0:01:03.7]} 44... Kf2 {[%clk 0:00:01.5]} 45. Qxe4 {[%clk 0:01:03.4]}
45... Kg3 {[%clk 0:00:02.2]} 46. Qg4+ {[%clk 0:01:02.5]} 46... Kf2 {[%clk
0:00:02]} 47. h7 {[%clk 0:01:01.6]} 47... Ke1 {[%clk 0:00:01.9]} 48. h8=Q {[%clk
0:01:01.7]} 48... Kd2 {[%clk 0:00:02.2]} 49. Qh2+ {[%clk 0:01:01.3]} 49... Ke3
{[%clk 0:00:02.4]} 50. Qe4# {[%clk 0:01:00.9]} 1-0

[Event "Late-Titled-Tuesday-Blitz-September-05-2023"]
[Site "Chess.com"]
[Date "2023.09.05"]
[Round "2"]
[White "TheRigos"]
[Black "queen_iryna"]
[Result "1/2-1/2"]
[WhiteElo "2520"]
[BlackElo "2335"]
[TimeControl "180+1"]
[EndTime "14:17:39 PDT"]
[Termination "Game drawn by repetition"]

1. e4 {[%clk 0:03:00.9]} 1... d6 {[%clk 0:03:00.9]} 2. d4 {[%clk 0:03:00.2]}
2... Nf6 {[%clk 0:03:01.5]} 3. Nc3 {[%clk 0:03:00]} 3... e5 {[%clk 0:03:01.9]}
4. Nf3 {[%clk 0:02:58.4]} 4... Nbd7 {[%clk 0:03:01.6]} 5. Rg1 {[%clk 0:02:55.7]}
5... g6 {[%clk 0:02:57.6]} 6. g4 {[%clk 0:02:54.2]} 6... Bg7 {[%clk 0:02:57.6]}
7. g5 {[%clk 0:02:48.9]} 7... Nh5 {[%clk 0:02:57.4]} 8. Be3 {[%clk 0:02:49.5]}
8... O-O {[%clk 0:02:56.2]} 9. Qd2 {[%clk 0:02:49.3]} 9... c6 {[%clk 0:02:54.6]}
10. O-O-O {[%clk 0:02:42.1]} 10... Qa5 {[%clk 0:02:54.4]} 11. Kb1 {[%clk
0:02:24.4]} 11... b5 {[%clk 0:02:53.4]} 12. dxe5 {[%clk 0:01:59.5]} 12... Nxe5
{[%clk 0:02:47.9]} 13. Nxe5 {[%clk 0:01:57.2]} 13... dxe5 {[%clk 0:02:42.9]} 14.
Bc5 {[%clk 0:01:51.5]} 14... Re8 {[%clk 0:02:41.8]} 15. a3 {[%clk 0:01:41.7]}
15... Be6 {[%clk 0:02:41.4]} 16. Qe3 {[%clk 0:01:18.3]} 16... Nf4 {[%clk
0:02:26.7]} 17. Ne2 {[%clk 0:01:12.3]} 17... Rad8 {[%clk 0:02:19.3]} 18. Rc1
{[%clk 0:00:59.7]} 18... Rd7 {[%clk 0:01:37.9]} 19. Nxf4 {[%clk 0:00:47.1]}
19... exf4 {[%clk 0:01:38.8]} 20. Qxf4 {[%clk 0:00:47.8]} 20... Be5 {[%clk
0:01:32.5]} 21. Qe3 {[%clk 0:00:43.4]} 21... Red8 {[%clk 0:01:19.5]} 22. f4
{[%clk 0:00:43.3]} 22... Bg7 {[%clk 0:01:18.9]} 23. Bd3 {[%clk 0:00:42.4]} 23...
Bd4 {[%clk 0:01:12]} 24. Bxd4 {[%clk 0:00:42.1]} 24... Rxd4 {[%clk 0:01:12.9]}
25. Rgd1 {[%clk 0:00:25.5]} 25... b4 {[%clk 0:01:10]} 26. Be2 {[%clk 0:00:23.2]}
26... Rxd1 {[%clk 0:01:02.7]} 27. Rxd1 {[%clk 0:00:23.5]} 27... Rxd1+ {[%clk
0:01:01.9]} 28. Bxd1 {[%clk 0:00:24.4]} 28... bxa3 {[%clk 0:01:01.5]} 29. Qxa3
{[%clk 0:00:25]} 29... Qd2 {[%clk 0:00:58.8]} 30. Qf3 {[%clk 0:00:14.9]} 30...
Qxh2 {[%clk 0:00:56.6]} 31. f5 {[%clk 0:00:12.7]} 31... gxf5 {[%clk 0:00:54.3]}
32. exf5 {[%clk 0:00:13.6]} 32... Bd5 {[%clk 0:00:54.9]} 33. Qe3 {[%clk
0:00:14.1]} 33... Qh1 {[%clk 0:00:37.4]} 34. Qe8+ {[%clk 0:00:11.7]} 34... Kg7
{[%clk 0:00:37.6]} 35. Qe5+ {[%clk 0:00:09.6]} 35... Kg8 {[%clk 0:00:34.1]} 36.
Kc1 {[%clk 0:00:09.7]} 36... Bf3 {[%clk 0:00:31.9]} 37. Qe8+ {[%clk 0:00:08.7]}
37... Kg7 {[%clk 0:00:31.8]} 38. Qe5+ {[%clk 0:00:06.4]} 38... Kg8 {[%clk
0:00:31.9]} 39. Qb8+ {[%clk 0:00:04.9]} 39... Kg7 {[%clk 0:00:31.5]} 40. Qe5+
{[%clk 0:00:05.8]} 40... Kg8 {[%clk 0:00:31.2]} 1/2-1/2